fUSD/lending_fUSD_20240408
["ID","MTS","AMOUNT","RATE_DAILY","PERIOD"]
[321898821,1712596232990,-262.92950562,0.00023317,2]
[321898822,1712596232999,-387.47,0.00023349,2]
[321898823,1712596233009,-152.08,0.00023379,2]
[321898824,1712596233018,-262.92950562,0.00023489,2]
[321898825,1712596233028,-152.08,0.00023552,2]
[321898826,1712596233037,-153.24506346,0.00023654,2]
[321898827,1712596233046,-155.78441961,0.00023701,2]
[321898828,1712596233056,-152.08,0.00023725,2]
[321898829,1712596233065,-1198.58,0.00023737,2]
[321898830,1712596233074,-2905.51424136,0.00023745,2]
[321898831,1712596233086,-1231.98607209,0.00023745,2]
[321898832,1712596233097,-183.94011188,0.00023745,2]
[321898833,1712596233106,-261.71950305,0.00023746,2]
[321898835,1712596233115,-200.33061371,0.00023754,2]
[321898837,1712596233124,-155.78441961,0.0002376,2]
[321898839,1712596233134,-153.8105693,0.00023815,2]
[321898841,1712596233143,-200.33061371,0.00023829,2]
[321898842,1712596233153,-155.78441961,0.00023832,2]
[321898843,1712596233162,-152.08,0.00023897,2]
[321898844,1712596233173,-200.33061371,0.00023934,2]
[321898845,1712596233182,-164.21191803,0.00024006,2]
[321898846,1712596233192,-424.62191795,0.00024051,2]
[321898847,1712596233200,-262.92950562,0.00024052,2]
[321898848,1712596233209,-152.08,0.0002407,2]
[321898849,1712596233218,-640.61802088,0.00024079,2]
[321898850,1712596233229,-430.81216233,0.00024096,2]
[321898851,1712596233241,-209.80585855,0.00024096,2]
[321898852,1712596233251,-329.07661536,0.00024121,2]
[321898853,1712596233260,-170.7195995,0.00024181,2]
[321898854,1712596233281,-267.8210201,0.00024181,2]
[321898855,1712596233291,-152.33207565,0.00024214,2]
[321898856,1712596233300,-152.08,0.00024243,2]
[321898857,1712596233310,-164.68212223,0.00024263,2]
[321898858,1712596233319,-150.0,0.000243,2]
[321898859,1712596233328,-155.78441961,0.00024305,2]
[321898860,1712596233337,-221.81819831,0.00024328,2]
[321898861,1712596233346,-942.60568362,0.00024329,2]
[321898862,1712596233357,-358.885,0.00024329,2]
[321898863,1712596233369,-523.28591813,0.00024329,2]
[321898864,1712596233384,-328.05377455,0.00024329,2]
[321898865,1712596233403,-462.26876,0.00024329,2]
[321898866,1712596233427,-547.90675383,0.00024329,2]
[321898867,1712596233440,-319.91350895,0.00024329,2]
[321898868,1712596233451,-2187.01173169,0.00024329,2]
[321898875,1712596238153,-1237.67299472,0.00022999,2]
[321898876,1712596238163,-20316.30717859,0.00024329,2]
[321898877,1712596238277,-388.39152218,0.00024329,2]
[321898878,1712596238410,-1289.66076782,0.00024329,2]
[321898879,1712596238464,-5026.90840997,0.00024329,2]
[321898925,1712596241722,-260.3255,0.000229,2]
[321898927,1712596241732,-636.49947611,0.00024329,2]
[321898933,1712596242187,-1292.65,0.00024329,2]
[321898934,1712596242213,-7881.79138292,0.00024329,2]
[321898935,1712596242223,-438.5406196,0.0002437,2]
[321898936,1712596242233,-152.08,0.00024415,2]
[321898937,1712596242245,-226.40263837,0.00024496,2]
[321898938,1712596242256,-167.00107983,0.00024542,2]
[321898939,1712596242267,-411.4,0.00024552,2]
[321898940,1712596242278,-1811.98,0.00024552,2]
[321898941,1712596242288,-318.42944485,0.00024575,2]
[321898942,1712596242298,-318.42944485,0.0002458,2]
[321898943,1712596242309,-156.2657349,0.00024662,2]
[321898944,1712596242321,-171.52528067,0.00024746,2]
[321898945,1712596242333,-156.2657349,0.00024798,2]
[321898946,1712596242343,-150.0,0.000248,2]
[321898947,1712596242354,-153.80423254,0.0002482,2]
[321898948,1712596242365,-205.97595837,0.00024892,2]
[321898949,1712596242375,-1968.9567,0.00024893,2]
[321898950,1712596242387,-803.92257345,0.00024893,2]
[321898951,1712596242397,-293.094,0.00024895,2]
[321898952,1712596242408,-4026.0084,0.00024895,2]
[321898953,1712596242417,-315.06233241,0.00024896,2]
[321898954,1712596242428,-853.2364691,0.00024896,2]
[321898955,1712596242439,-2763.7006,0.00024897,2]
[321898956,1712596242450,-329.07661536,0.00024903,2]
[321898957,1712596242460,-153.24506346,0.00024958,2]
[321898958,1712596242470,-438.5406196,0.00024975,2]
[321898959,1712596242480,-201.14481687,0.00024981,2]
[321898960,1712596242489,-31040.8442772,0.00024991,2]
[321898961,1712596242500,-410.1381306,0.00024991,2]
[321898962,1712596242509,-6555.9471577,0.00024991,2]
[321898963,1712596242520,-4553.1082043,0.00024991,2]
[321898964,1712596242530,-519.3575264,0.00024991,2]
[321898965,1712596242540,-2170.28018332,0.00024993,2]
[321898966,1712596242551,-201.57223821,0.00024993,2]
[321898967,1712596242561,-404.03202112,0.00024993,2]
[321898968,1712596242572,-1230.7980878,0.00024993,2]
[321898969,1712596242582,-1865.01023737,0.00024994,2]
[321898970,1712596242593,-3369.40436091,0.00024994,2]
[321898971,1712596242603,-193.67481927,0.00024995,2]
[321898972,1712596242614,-263329.89160226,0.00024995,2]
[321898973,1712596242632,-1175.77423825,0.00024995,2]
[321898974,1712596242644,-551.03510557,0.00024995,2]
[321898975,1712596242661,-48675.93126504,0.00024995,2]
[321898976,1712596242672,-179.89989495,0.00024996,2]
[321898977,1712596242684,-18247.93347717,0.00024996,2]
[321898978,1712596242694,-2172.31241401,0.00024996,2]
[321898979,1712596242705,-155.47530298,0.00024996,2]
[321898980,1712596242714,-2352.12069937,0.00024996,2]
[321898981,1712596242726,-812.25155901,0.00024996,2]
[321898982,1712596242735,-248.73766816,0.00024996,2]
[321898983,1712596242744,-155.39919849,0.00024996,2]
[321898984,1712596242754,-306.87494845,0.00024996,2]
[321898985,1712596242763,-155.41641255,0.00024996,2]
[321898986,1712596242772,-342.0819237,0.00024996,2]
[321898987,1712596242782,-155.0,0.00024997,2]
[321898988,1712596242791,-29811.08227845,0.00024998,2]
[321898989,1712596242801,-26538.76781506,0.00024998,2]
[321898990,1712596242810,-1070.03227974,0.00024998,2]
[321898991,1712596242820,-390.38414543,0.00024998,2]
[321898992,1712596242830,-155.0,0.00024998,2]
[321898993,1712596242841,-151.0,0.00024998,7]
[321898994,1712596242850,-151.0,0.00024998,7]
[321898995,1712596242859,-151.0,0.00024998,2]
[321898996,1712596242868,-151.0,0.00024998,2]
[321898997,1712596242879,-151.0,0.00024998,7]
[321898998,1712596242888,-151.0,0.00024998,7]
[321898999,1712596242898,-151.0,0.00024998,7]
[321899000,1712596242908,-1060.49937,0.00024998,2]
[321899001,1712596242917,-151.0,0.00024998,7]
[321899002,1712596242927,-269.959562,0.00024998,7]
[321899034,1712596243325,-151.0,0.00024998,7]
[321899037,1712596243346,-151.0,0.00024998,7]
[321899039,1712596243357,-151.0,0.00024998,7]
[321899042,1712596243370,-151.0,0.00024998,7]
[321899044,1712596243381,-270.883576,0.00024998,7]
[321899046,1712596243391,-270.883576,0.00024998,7]
[321899047,1712596243401,-151.0,0.00024998,7]
[321899048,1712596243412,-151.0,0.00024998,7]
[321899049,1712596243424,-2602.89125943,0.00025,2]
[321899050,1712596243436,-502.0,0.00025,2]
[321899051,1712596243447,-2683.0,0.00025,2]
[321899052,1712596243458,-650.0,0.00025,3]
[321899053,1712596243469,-4145.5456995,0.00025008,2]
[321899054,1712596243482,-116079.6007905,0.00025025,2]
[321899055,1712596243493,-151.0,0.00025025,7]
[321899056,1712596243504,-212.31698,0.00025025,7]
[321899057,1712596243515,-151.0,0.00025025,7]
[321899058,1712596243526,-151.0,0.00025025,7]
[321899059,1712596243536,-151.0,0.00025025,7]
[321899060,1712596243546,-151.0,0.00025025,7]
[321899061,1712596243555,-151.0,0.00025025,7]
[321899062,1712596243565,-446.085044,0.00025025,7]
[321899063,1712596243575,-446.085044,0.00025025,7]
[321899064,1712596243586,-151.0,0.00025025,7]
[321899065,1712596243596,-151.0,0.00025025,7]
[321899066,1712596243607,-151.0,0.00025025,7]
[321899067,1712596243618,-404.817242,0.00025025,7]
[321899068,1712596243628,-404.817242,0.00025025,7]
[321899069,1712596243638,-151.0,0.00025025,7]
[321899070,1712596243649,-151.0,0.00025025,7]
[321899071,1712596243659,-151.0,0.00025025,7]
[321899072,1712596243670,-151.0,0.00025025,7]
[321899073,1712596243681,-151.0,0.00025025,7]
[321899074,1712596243691,-151.0,0.00025025,7]
[321899075,1712596243701,-198.393511,0.00025025,7]
[321899076,1712596243711,-151.0,0.00025025,7]
[321899077,1712596243721,-198.393511,0.00025025,7]
[321899078,1712596243731,-151.0,0.00025025,7]
[321899079,1712596243740,-151.0,0.00025025,7]
[321899080,1712596243749,-151.0,0.00025025,7]
[321899081,1712596243758,-270.883576,0.00025025,7]
[321899082,1712596243769,-270.883576,0.00025025,7]
[321899083,1712596243779,-151.0,0.00025025,7]
[321899084,1712596243789,-151.0,0.00025025,7]
[321899085,1712596243799,-151.0,0.00025025,7]
[321899086,1712596243810,-290.17522,0.00025025,7]
[321899087,1712596243819,-151.0,0.00025025,7]
[321899088,1712596243829,-196.740753,0.00025025,7]
[321899089,1712596243840,-151.0,0.00025025,7]
[321899090,1712596243850,-254.889716,0.00025025,7]
[321899091,1712596243859,-254.889716,0.00025025,7]
[321899092,1712596243868,-151.0,0.00025025,7]
[321899093,1712596243879,-151.0,0.00025025,7]
[321899094,1712596243889,-151.0,0.00025025,7]
[321899095,1712596243899,-151.0,0.00025025,7]
[321899096,1712596243909,-151.0,0.00025025,7]
[321899097,1712596243919,-151.0,0.00025025,7]
[321899098,1712596243929,-580.300867,0.00025025,7]
[321899099,1712596243939,-151.0,0.00025042,7]
[321899100,1712596243948,-151.0,0.00025042,7]
[321899101,1712596243956,-151.0,0.00025042,7]
[321899102,1712596243965,-151.0,0.00025042,7]
[321899103,1712596243975,-151.0,0.00025042,7]
[321899104,1712596243984,-906.33,0.00025083,2]
[321899105,1712596243994,-424.62191795,0.00025145,2]
[321899106,1712596244003,-438.5406196,0.00025154,2]
[321899107,1712596244014,-424.62191795,0.00025178,2]
[321899108,1712596244023,-205.97595837,0.00025231,2]
[321899109,1712596244033,-150.5479434,0.0002526,2]
[321899110,1712596244042,-150.0,0.000253,2]
[321899111,1712596244052,-803.92257344,0.00025312,2]
[321899112,1712596244061,-853.23646905,0.00025325,2]
[321899113,1712596244070,-150.0,0.00025373,4]
[321899114,1712596244079,-150.0,0.00025373,4]
[321899115,1712596244089,-150.0,0.00025373,4]
[321899116,1712596244099,-150.0,0.00025373,4]
[321899117,1712596244109,-150.00000001,0.00025373,4]
[321899118,1712596244118,-150.0,0.00025373,4]
[321899119,1712596244128,-150.0,0.00025373,4]
[321899121,1712596244138,-150.0,0.00025373,4]
[321899122,1712596244148,-150.0,0.00025373,4]
[321899123,1712596244158,-150.0,0.00025373,4]
[321899124,1712596244167,-292.25378339,0.00025373,4]
[321899125,1712596244176,-150.00000001,0.00025373,4]
[321899126,1712596244189,-318.42944485,0.00025388,2]
[321899127,1712596244199,-411.4,0.00025427,2]
[321899128,1712596244209,-906.33,0.00025427,2]
[321899129,1712596244219,-411.4,0.00025431,2]
[321899130,1712596244228,-411.4,0.00025431,2]
[321899131,1712596244237,-906.33,0.00025431,2]
[321899132,1712596244246,-906.33,0.00025431,2]
[321899133,1712596244255,-150.0,0.00025461,4]
[321899134,1712596244265,-153.24506346,0.00025475,2]
[321899135,1712596244275,-318.42944485,0.00025478,2]
[321899136,1712596244284,-153.24506346,0.00025483,2]
[321899137,1712596244293,-150.5479434,0.00025507,2]
[321899138,1712596244303,-424.62191795,0.00025517,2]
[321899139,1712596244312,-150.0,0.00025549,4]
[321899140,1712596244322,-205.97595837,0.00025556,2]
[321899141,1712596244332,-150.0,0.00025574,4]
[321899142,1712596244341,-205.97595837,0.00025581,2]
[321899143,1712596244351,-424.62191795,0.00025592,2]
[321899144,1712596244360,-150.49,0.00025606,2]
[321899145,1712596244370,-151.18,0.00025606,2]
[321899146,1712596244380,-251.01,0.00025606,2]
[321899147,1712596244390,-150.0,0.00025606,2]
[321899148,1712596244400,-150.0,0.00025606,2]
[321899149,1712596244410,-150.0,0.00025606,2]
[321899150,1712596244420,-150.0,0.00025608,4]
[321899151,1712596244432,-387.47,0.00025613,2]
[321899152,1712596244441,-640.61802088,0.00025629,2]
[321899153,1712596244451,-150.0,0.00025637,4]
[321899154,1712596244460,-640.61802088,0.00025658,2]
[321899155,1712596244470,-156.73458952,0.00025675,2]
[321899156,1712596244480,-318.42944485,0.0002568,2]
[321899157,1712596244489,-262.92950562,0.00025686,2]
[321899158,1712596244498,-153.80423254,0.00025696,2]
[321899159,1712596244507,-150.0,0.00025725,4]
[321899160,1712596244517,-803.92257344,0.00025732,2]
[321899161,1712596244526,-318.42944485,0.00025735,2]
[321899162,1712596244535,-853.23646905,0.00025754,2]
[321899163,1712596244544,-262.92950562,0.00025763,2]
[321899164,1712596244554,-150.0,0.00025775,4]
[321899165,1712596244563,-150.0,0.00025775,4]
[321899166,1712596244572,-150.0,0.000258,2]
[321899167,1712596244582,-150.0,0.00025813,4]
[321899168,1712596244591,-500.0,0.0002584,2]
[321899169,1712596244601,-2300.0,0.0002584,2]
[321899170,1712596244610,-150.0,0.00025842,4]
[321899171,1712596244619,-640.0,0.00025872,2]
[321899172,1712596244629,-424.62191795,0.00025874,2]
[321899173,1712596244638,-205.97595837,0.00025883,2]
[321899174,1712596244648,-153.24506346,0.00025888,2]
[321899175,1712596244658,-2136.64,0.00025892,2]
[321899176,1712596244667,-150.0,0.00025901,4]
[321899177,1712596244677,-156.2657349,0.00025914,2]
[321899178,1712596244689,-200.0,0.0002594,2]
[321899179,1712596244699,-151.0,0.00025953,7]
[321899180,1712596244709,-151.0,0.00025953,7]
[321899181,1712596244718,-151.0,0.00025953,7]
[321899182,1712596244728,-318.42944485,0.00025956,2]
[321899183,1712596244738,-150.0,0.00025977,4]
[321899184,1712596244748,-205.97595837,0.00025979,2]
[321899185,1712596244757,-360.0,0.00025988,2]
[321899186,1712596244766,-150.0,0.00025989,4]
[321899187,1712596244776,-152.0,0.0002603,4]
[321899188,1712596244785,-199.253202,0.00026042,7]
[321899189,1712596244795,-199.253202,0.00026042,7]
[321899190,1712596244806,-906.33,0.00026042,2]
[321899191,1712596244815,-906.33,0.00026042,2]
[321899192,1712596244824,-906.33,0.00026042,2]
[321899193,1712596244835,-906.33,0.00026042,2]
[321899194,1712596244845,-915.94,0.00026048,2]
[321899195,1712596244855,-410.34,0.00026048,2]
[321899196,1712596244864,-1938.54,0.00026048,2]
[321899197,1712596244874,-1467.97,0.00026048,2]
[321899198,1712596244883,-150.0,0.00026077,4]
[321899199,1712596244893,-150.0,0.00026077,4]
[321899200,1712596244903,-150.0,0.00026077,4]
[321899201,1712596244912,-803.92257344,0.00026151,2]
[321899202,1712596244921,-151.0,0.00026153,7]
[321899203,1712596244932,-151.0,0.00026153,7]
[321899204,1712596244942,-151.0,0.00026153,2]
[321899205,1712596244952,-151.0,0.00026153,2]
[321899206,1712596244961,-151.0,0.00026153,7]
[321899207,1712596244971,-151.0,0.00026153,7]
[321899208,1712596244980,-151.0,0.00026153,7]
[321899209,1712596244990,-151.0,0.00026153,7]
[321899210,1712596244999,-151.0,0.00026153,7]
[321899211,1712596245009,-151.0,0.00026153,7]
[321899212,1712596245018,-446.085044,0.00026153,7]
[321899213,1712596245027,-151.0,0.00026153,7]
[321899214,1712596245036,-446.085044,0.00026153,7]
[321899215,1712596245046,-151.0,0.00026153,7]
[321899216,1712596245055,-404.817242,0.00026153,7]
[321899217,1712596245065,-404.817242,0.00026153,7]
[321899218,1712596245076,-151.0,0.00026153,7]
[321899219,1712596245086,-151.0,0.00026153,7]
[321899220,1712596245096,-151.0,0.00026153,7]
[321899221,1712596245105,-151.0,0.00026153,7]
[321899222,1712596245115,-151.0,0.00026153,7]
[321899223,1712596245125,-151.0,0.00026153,7]
[321899224,1712596245135,-198.393511,0.00026153,7]
[321899225,1712596245144,-151.0,0.00026153,7]
[321899226,1712596245153,-198.393511,0.00026153,7]
[321899227,1712596245162,-151.0,0.00026153,7]
[321899228,1712596245171,-214.940249,0.00026153,7]
[321899229,1712596245183,-270.883576,0.00026153,7]
[321899230,1712596245192,-270.883576,0.00026153,7]
[321899231,1712596245201,-151.0,0.00026153,7]
[321899232,1712596245210,-151.0,0.00026153,7]
[321899233,1712596245220,-150.0,0.00026165,4]
[321899234,1712596245230,-150.0,0.00026178,4]
[321899235,1712596245241,-150.0,0.00026178,4]
[321899236,1712596245251,-853.23646905,0.00026183,3]
[321899237,1712596245261,-640.61802088,0.00026198,2]
[321899238,1712596245272,-151.0,0.00026203,7]
[321899239,1712596245282,-249.438702,0.00026203,7]
[321899240,1712596245292,-157.43,0.00026203,2]
[321899241,1712596245301,-519.8,0.00026203,2]
[321899242,1712596245314,-150.0,0.00026203,2]
[321899243,1712596245323,-348.62,0.00026203,2]
[321899244,1712596245332,-327.61,0.00026203,2]
[321899245,1712596245342,-200.33061371,0.00026223,2]
[321899246,1712596245351,-150.0,0.00026254,4]
[321899247,1712596245361,-150.0,0.000263,2]
[321899248,1712596245371,-150.0,0.00026312,4]
[321899249,1712596245382,-151.0,0.0002632,7]
[321899250,1712596245391,-151.0,0.0002632,7]
[321899251,1712596245401,-200.0,0.0002632,2]
[321899252,1712596245411,-1000.0,0.0002632,2]
[321899253,1712596245421,-500.0,0.0002632,2]
[321899254,1712596245432,-200.0,0.0002632,2]
[321899255,1712596245442,-150.0,0.00026342,4]
[321899256,1712596245451,-156.2657349,0.0002635,2]
[321899257,1712596245462,-329.07661536,0.0002635,2]
[321899258,1712596245471,-150.0,0.00026379,4]
[321899259,1712596245480,-329.07661536,0.00026382,2]
[321899260,1712596245489,-205.97595837,0.00026384,2]
[321899261,1712596245499,-2300.0,0.00026388,2]
[321899262,1712596245508,-151.0,0.00026388,7]
[321899263,1712596245517,-151.0,0.00026388,7]
[321899264,1712596245526,-151.0,0.00026388,7]
[321899265,1712596245535,-151.0,0.00026388,7]
[321899266,1712596245545,-150.0,0.00026428,2]
[321899267,1712596245555,-833.19,0.00026428,2]
[321899268,1712596245565,-417.68,0.00026428,2]
[321899269,1712596245574,-417.68,0.00026428,2]
[321899270,1712596245583,-150.0,0.00026428,2]
[321899271,1712596245593,-162.18,0.00026428,2]
[321899272,1712596245602,-150.0,0.00026428,2]
[321899273,1712596245612,-417.68,0.00026428,2]
[321899274,1712596245621,-150.0,0.00026428,2]
[321899275,1712596245630,-150.0,0.00026428,2]
[321899276,1712596245640,-417.68,0.00026428,2]
[321899277,1712596245650,-150.0,0.00026428,2]
[321899278,1712596245660,-150.0,0.00026428,2]
[321899279,1712596245669,-320.88,0.00026428,2]
[321899280,1712596245678,-162.18,0.00026428,2]
[321899281,1712596245689,-162.18,0.00026428,2]
[321899282,1712596245699,-150.0,0.00026428,2]
[321899283,1712596245709,-835.36,0.00026428,2]
[321899284,1712596245718,-162.18,0.00026428,2]
[321899285,1712596245728,-835.36,0.00026428,2]
[321899286,1712596245739,-300.0,0.00026428,2]
[321899287,1712596245752,-324.36,0.00026428,2]
[321899288,1712596245762,-300.0,0.00026428,2]
[321899289,1712596245771,-162.18,0.00026428,2]
[321899290,1712596245780,-150.0,0.00026428,2]
[321899292,1712596245885,-150.0,0.0002643,4]
[321899293,1712596245895,-66724.87115476,0.0002643,3]
[321899294,1712596245910,-9756.10621234,0.0002643,3]
[321899296,1712596245919,-153.8105693,0.00026449,2]
[321899297,1712596245929,-150.5479434,0.0002646,2]
[321899298,1712596245941,-150.0,0.00026518,4]
[321899299,1712596245951,-169.1734385,0.00026529,2]
[321899300,1712596245960,-150.0,0.00026547,4]
[321899301,1712596245969,-339.02,0.00026563,2]
[321899303,1712596245978,-329.07661536,0.00026568,2]
[321899304,1712596245987,-151.0,0.00026568,7]
[321899305,1712596245997,-151.0,0.00026568,7]
[321899306,1712596246006,-151.0,0.00026568,7]
[321899307,1712596246016,-151.0,0.00026568,7]
[321899308,1712596246025,-580.300867,0.00026568,7]
[321899309,1712596246035,-803.92257344,0.0002657,2]
[321899311,1712596246044,-150.0,0.00026581,4]
[321899313,1712596246054,-150.0,0.00026581,4]
[321899314,1712596246063,-164.350608,0.00026581,7]
[321899316,1712596246072,-151.0,0.00026581,7]
[321899318,1712596246081,-151.0,0.00026581,7]
[321899319,1712596246090,-254.889716,0.00026581,7]
[321899320,1712596246100,-254.889716,0.00026581,7]
[321899321,1712596246110,-151.0,0.00026581,7]
[321899322,1712596246119,-193.094434,0.00026581,7]
[321899323,1712596246128,-438.5406196,0.00026583,2]
[321899324,1712596246137,-151.0,0.00026589,7]
[321899325,1712596246147,-7500.0,0.00026589,2]
[321899326,1712596246157,-150.0,0.00026606,4]
[321899327,1712596246166,-853.23646905,0.00026613,3]
[321899329,1712596246175,-166.66666666,0.00026615,2]
[321899331,1712596246187,-171.42284928,0.00026617,2]
[321899333,1712596246197,-424.62191795,0.0002662,2]
[321899335,1712596246206,-43312.73818688,0.00026689,2]
[321899338,1712596246589,-21137.64120012,0.00026689,2]
[321899339,1712596246606,-52205.19281452,0.00026689,2]
[321899340,1712596246616,-151.0,0.00026689,7]
[321899341,1712596246626,-151.0,0.00026689,7]
[321899342,1712596246635,-151.0,0.00026689,7]
[321899343,1712596246644,-151.0,0.00026689,7]
[321899344,1712596246653,-151.0,0.00026689,7]
[321899345,1712596246663,-151.0,0.00026689,7]
[321899346,1712596246672,-199.253202,0.00026689,7]
[321899347,1712596246682,-199.253202,0.00026689,7]
[321899348,1712596246691,-151.0,0.00026689,7]
[321899349,1712596246700,-151.0,0.00026689,7]
[321899350,1712596246709,-151.0,0.00026689,7]
[321899351,1712596246718,-151.0,0.00026689,7]
[321899352,1712596246728,-151.0,0.00026689,2]
[321899353,1712596246737,-151.0,0.00026689,2]
[321899354,1712596246746,-151.0,0.00026689,7]
[321899355,1712596246756,-151.0,0.00026689,7]
[321899356,1712596246765,-151.0,0.00026689,7]
[321899357,1712596246775,-151.0,0.00026689,7]
[321899358,1712596246784,-151.0,0.00026689,7]
[321899359,1712596246793,-151.0,0.00026689,7]
[321899360,1712596246804,-151.0,0.00026689,7]
[321899361,1712596246813,-446.085044,0.00026689,7]
[321899362,1712596246822,-151.0,0.00026689,7]
[321899363,1712596246833,-446.085044,0.00026689,7]
[321899364,1712596246843,-151.0,0.00026689,7]
[321899365,1712596246852,-404.817242,0.00026689,7]
[321899366,1712596246862,-404.817242,0.00026689,7]
[321899367,1712596246871,-294.161538,0.00026689,7]
[321899368,1712596246882,-151.0,0.00026689,7]
[321899369,1712596246892,-151.0,0.00026689,7]
[321899370,1712596246903,-287.918327,0.00026689,7]
[321899371,1712596246916,-151.0,0.00026689,7]
[321899372,1712596246926,-198.393511,0.00026689,7]
[321899373,1712596246938,-214.9212,0.00026689,7]
[321899374,1712596246948,-198.393511,0.00026689,7]
[321899375,1712596246959,-151.0,0.00026689,7]
[321899376,1712596246970,-270.883576,0.00026689,7]
[321899377,1712596246980,-270.883576,0.00026689,7]
[321899378,1712596246989,-151.0,0.00026689,7]
[321899379,1712596246999,-151.0,0.00026689,7]
[321899380,1712596247008,-151.0,0.00026689,7]
[321899381,1712596247018,-151.0,0.00026689,7]
[321899382,1712596247027,-254.889716,0.00026689,7]
[321899383,1712596247036,-254.889716,0.00026689,7]
[321899384,1712596247046,-187.624352,0.00026689,7]
[321899385,1712596247054,-151.0,0.00026689,7]
[321899386,1712596247064,-151.0,0.00026689,7]
[321899387,1712596247073,-151.0,0.00026689,7]
[321899388,1712596247082,-580.300867,0.00026689,7]
[321899389,1712596247091,-150.0,0.00026694,4]
[321899390,1712596247100,-150.0,0.000267,2]
[321899391,1712596247109,-150.0,0.000267,2]
[321899392,1712596247119,-481.0,0.000267,10]
[321899393,1712596247128,-394.0,0.000267,2]
[321899394,1712596247138,-329.07661536,0.000267,2]
[321899395,1712596247148,-187.0,0.000267,10]
[321899396,1712596247157,-155.78441961,0.00026738,2]
[321899397,1712596247167,-424.62191795,0.0002676,2]
[321899398,1712596247176,-262.92950562,0.00026763,2]
[321899399,1712596247187,-150.0,0.00026782,4]
[321899400,1712596247196,-150.0,0.00026782,4]
[321899401,1712596247205,-150.0,0.00026782,4]
[321899402,1712596247214,-150.0,0.00026782,4]
[321899403,1712596247223,-150.0,0.00026782,4]
[321899404,1712596247233,-438.5406196,0.00026785,2]
[321899405,1712596247242,-620.18279938,0.00026795,2]
[321899406,1712596247252,-215.43117381,0.00026795,2]
[321899407,1712596247261,-278.15686245,0.00026795,2]
[321899408,1712596247271,-640.08300789,0.00026795,2]
[321899409,1712596247280,-2334.01897608,0.00026795,2]
[321899410,1712596247292,-567.738,0.00026795,2]
[321899411,1712596247465,-537.16417105,0.00026795,2]
[321899412,1712596247476,-460.4138208,0.00026795,2]
[321899413,1712596248615,-155.0,0.00024328,2]
[321899414,1712596248624,-580.300867,0.00025025,7]
[321899415,1712596248633,-580.300867,0.00026568,7]
[321899416,1712596248642,-580.300867,0.00026689,7]
[321899417,1712596248652,-5528.04136714,0.00026795,2]
[321899418,1712596248707,-322.73789507,0.00024329,2]
[321899419,1712596248716,-437.80144196,0.00024504,2]
[321899420,1712596248725,-437.80144196,0.00024579,2]
[321899421,1712596248735,-34.25747943,0.00026795,2]
[321899422,1712596248747,-1107.01368772,0.00026795,2]
[321899423,1712596248758,-847.00775204,0.00026795,2]
[321899426,1712596495610,276.62,0.00024329,15]
[321899428,1712596644758,20000.0,0.00020802,18]
[321899429,1712596684131,20000.0,0.00020802,18]
[321899430,1712596709987,20000.0,0.00020802,18]
[321899431,1712596731689,18704.36385491,0.00020802,18]
[321899432,1712596731718,1295.63614509,0.00020802,18]
[321899433,1712596942622,169.78,0.00018012,2]
[321899434,1712597013974,25000.0,0.00028,20]
[321899435,1712597031310,25000.0,0.00028,20]
[321899436,1712597037347,2060.56615535,0.00018012,2]